bitfinex-derivatives/quotes_SOLF0:USTF0_20250911
["timestamp","ask_amount","ask_price","bid_price","bid_amount"]
[1757602809193,7.12,227.17,227.08,6.89]
[1757602811987,7.12,227.15,227.03,6.89]
[1757602812183,7.12,227.13,227.01,4.89829499]
[1757602812390,7.12,227.11,226.99,11.78829499]
[1757602812689,7.12,227.09,226.99,6.89]
[1757602812885,7.12,227.07,226.99,6.89]
[1757602813183,10.15464722,227.06,226.99,6.89]
[1757602813390,7.12,227.07,226.99,6.89]
[1757602813391,7.33352115,227.05,226.99,6.89]
[1757602813687,7.33352115,227.04,226.92,6.89]
[1757602813888,3.44998757,227.03,226.92,6.89]
[1757602814087,7.12,227.08,226.92,6.89]
[1757602814388,7.12,227.06,226.92,6.89]
[1757602814587,3.71377322,227.05,226.93,6.89]
[1757602814786,7.12,227.12,226.94,6.89]
[1757602814985,3.71202571,227.11,226.95,62.0]
[1757602815285,7.12,227.15,226.96,6.89]
[1757602815589,6.77009615,227.14,226.96,6.89]
[1757602815787,6.77009615,227.13,226.96,6.89]
[1757602816089,7.12,227.11,226.98,6.89]
[1757602816389,3.71186263,227.1,226.98,6.89]
[1757602816587,3.71186263,227.09,226.98,6.89]
[1757602816783,7.12,227.11,226.98,6.89]
[1757602816784,3.71186263,227.08,226.98,6.89]
[1757602816991,7.12,227.11,226.98,6.89]
[1757602817291,3.72734686,227.1,226.98,6.89]
[1757602817584,7.12,227.15,226.98,6.89]
[1757602817785,3.7267505,227.14,226.98,6.89]
[1757602818089,3.7267505,227.13,226.98,6.89]
[1757602818287,3.7267505,227.12,226.98,6.89]
[1757602818488,7.12,227.15,226.99,62.0]
[1757602818688,3.72673821,227.14,227.0,6.89]
[1757602818884,3.72673821,227.13,227.0,6.89]
[1757602819090,3.72673821,227.12,227.0,6.89]
[1757602819291,7.12,227.15,227.0,6.89]
[1757602819492,3.7266892,227.14,227.0,6.89]
[1757602819690,3.7266892,227.13,227.0,6.89]
[1757602819893,3.7266892,227.12,227.0,6.89]
[1757602820088,7.12,227.15,227.0,6.89]
[1757602820285,6.78501833,227.14,227.0,6.89]
[1757602820592,3.7267548,227.13,227.0,6.89]
[1757602820788,3.7267548,227.12,227.0,6.89]
[1757602820991,7.12,227.15,227.0,6.89]
[1757602821187,3.72673501,227.14,227.0,6.89]
[1757602821392,7.12,227.15,227.0,6.89]
[1757602821592,3.72641277,227.14,227.0,6.89]
[1757602821892,7.12,227.15,227.0,6.89]
[1757602822093,3.72641283,227.14,227.0,6.89]
[1757602822294,7.12,227.15,227.0,6.89]
[1757602822495,3.72618063,227.14,227.0,6.89]
[1757602822794,7.12,227.15,227.0,6.89]
[1757602822992,3.72618043,227.14,227.0,6.89]
[1757602823296,7.12,227.12,227.0,6.89]
[1757602823493,3.72679892,227.11,227.0,100.07]
[1757602823693,3.72685081,227.1,227.0,116.15]
[1757602823893,7.12,227.12,227.0,6.89]
[1757602824094,3.7269029,227.11,227.0,6.89]
[1757602824390,3.7269029,227.1,227.0,6.89]
[1757602824697,7.12,227.12,227.0,6.89]
[1757602824897,3.72715204,227.11,227.0,6.89]
[1757602825086,3.72715204,227.1,227.0,6.89]
[1757602825290,7.12,227.12,227.0,6.89]
[1757602825490,3.72720079,227.11,227.0,6.89]
[1757602825788,3.72720079,227.1,227.0,6.89]
[1757602825991,7.12,227.12,227.0,6.89]
[1757602826191,3.72730498,227.11,227.0,6.89]
[1757602826393,3.72730498,227.1,227.0,6.89]
[1757602826593,7.12,227.12,227.0,6.89]
[1757602826893,3.72741101,227.11,227.0,99.91]
[1757602827098,3.72741101,227.1,227.0,99.91]
[1757602827402,7.53,227.21,227.01,6.89]
[1757602827600,7.53,227.19,227.02,7.44]
[1757602827899,7.53,227.17,227.02,7.44]
[1757602828095,6.79154384,227.16,227.02,7.44]
[1757602828403,3.72725775,227.15,227.02,7.44]
[1757602828701,3.72725775,227.14,227.03,7.44]
[1757602828901,7.53,227.17,227.03,7.44]
[1757602829106,3.72653829,227.16,227.03,7.44]
[1757602829300,3.72653829,227.15,227.03,7.4132444]
[1757602829601,7.53,227.21,227.04,7.44]
[1757602829901,7.53,227.21,227.05,69.4132444]
[1757602829902,6.78916606,227.2,227.05,69.4132444]
[1757602830201,3.72590938,227.19,227.06,7.44]
[1757602830401,7.53,227.21,227.06,7.44]
[1757602830602,3.61799136,227.2,227.06,7.44]
[1757602830802,3.61799136,227.19,227.07,103.56]
[1757602831004,7.53,227.21,227.08,7.44]
[1757602831197,3.61799116,227.2,227.08,7.44]
[1757602831398,7.53,227.21,227.08,7.44]
[1757602831796,3.61698437,227.2,227.09,74.56]
[1757602831998,7.53,227.21,227.05,7.4132444]
[1757602832197,7.53,227.19,226.99,7.44]
[1757602832398,7.53,227.17,226.99,7.44]
[1757602832700,7.53,227.15,226.99,7.44]
[1757602832896,10.30924853,227.14,226.99,7.44]
[1757602833096,10.30998646,227.13,226.99,7.44]
[1757602833298,7.53,227.12,226.99,7.44]
[1757602834102,7.53,227.12,227.01,7.44]
[1757602834701,7.53,227.12,227.02,7.44]
[1757602835401,15.57,227.24,227.02,7.44]
[1757602835610,7.53,227.22,227.02,7.44]
[1757602835904,7.53,227.2,227.02,7.44]
[1757602836102,7.53,227.18,227.02,7.44]
[1757602836306,7.53,227.16,227.02,7.44]
[1757602837708,3.54051356,227.15,227.03,46.84]
[1757602837912,7.53,227.16,227.03,46.84]
[1757602838113,7.53,227.16,227.04,7.44]
[1757602839813,7.53,227.16,227.0,14.8532444]
[1757602840012,7.53,227.14,227.0,7.44]
[1757602840808,7.53,227.12,227.0,7.44]
[1757602842913,7.53,227.21,227.02,7.44]
[1757602843114,7.53,227.19,227.02,7.44]
[1757602843412,6.60079392,227.18,227.02,7.44]
[1757602843612,7.53,227.19,227.02,7.44]
[1757602843813,7.53,227.17,227.02,7.44]
[1757602844011,7.53,227.17,227.04,7.44]
[1757602844514,7.53,227.15,227.04,7.44]
[1757602847016,7.53,227.15,227.05,109.4]
[1757602847215,7.53,227.15,227.05,109.38]
[1757602847512,7.53,227.16,226.98,7.4132444]
[1757602847822,7.53,227.14,226.94,7.44]
[1757602848006,7.53,227.12,226.94,7.44]
[1757602848207,7.53,227.1,226.94,7.44]
[1757602848415,7.53,227.08,226.94,7.44]
[1757602848817,7.53,227.08,226.95,7.44]
[1757602849015,7.53,227.08,226.96,7.44]
[1757602850208,7.53,227.18,226.97,7.44]
[1757602850412,7.53,227.16,226.97,69.44]
[1757602850617,7.53,227.14,226.98,7.44]
[1757602850808,3.55877455,227.13,227.0,7.44]
[1757602851111,7.53,227.14,227.0,7.44]
[1757602851312,3.55874027,227.13,227.0,7.44]
[1757602851514,7.53,227.14,227.0,7.44]
[1757602851714,3.55873729,227.13,227.0,7.44]
[1757602851914,7.53,227.14,227.0,7.44]
[1757602852220,3.55873729,227.13,227.0,7.44]
[1757602852519,7.53,227.14,227.0,7.44]
[1757602852712,3.55869981,227.13,227.0,7.44]
[1757602852917,7.53,227.14,227.0,7.44]
[1757602853116,7.53,227.12,227.0,38.26]
[1757602853318,7.53,227.1,227.0,38.26]
[1757602853614,7.53,227.1,227.0,7.44]
[1757602854217,7.53,227.08,226.93,7.44]
[1757602854422,3.55940039,227.07,226.93,7.44]
[1757602854622,7.53,227.06,226.93,7.44]
[1757602856425,7.53,227.06,226.93,117.2]
[1757602857018,7.53,227.11,226.93,7.44]
[1757602857217,10.19335254,227.1,226.93,64.78]
[1757602857425,10.19335254,227.09,226.93,117.18]
[1757602857626,10.19335254,227.08,226.93,117.18]
[1757602857929,7.21,227.06,226.93,117.18]
[1757602858124,7.21,227.1,226.93,117.18]
[1757602858324,10.19751814,227.09,226.93,117.18]
[1757602858528,17.40751814,227.08,226.93,117.16]
[1757602858726,7.21,227.06,226.93,117.16]
[1757602858929,10.58,227.11,226.93,117.16]
[1757602859221,10.19764533,227.1,226.93,117.16]
[1757602859427,10.19764533,227.09,226.93,117.16]
[1757602859731,7.21,227.07,226.93,117.16]
[1757602860026,7.21,227.05,226.93,117.16]
[1757602860728,10.58,227.11,226.93,117.16]
[1757602860930,7.21,227.09,226.93,117.16]
[1757602861116,7.21,227.07,226.93,117.16]
[1757602861325,7.21,227.07,226.94,7.28]
[1757602862127,7.21,227.13,226.89,7.28]
[1757602862332,7.21,227.11,226.89,7.28]
[1757602862530,7.21,227.09,226.89,7.28]
[1757602862834,7.21,227.07,226.9,7.28]
[1757602865237,7.21,227.13,226.92,7.28]
[1757602865437,7.21,227.11,226.93,11.58]
[1757602865639,7.21,227.09,226.92,7.28]
[1757602865842,7.21,227.07,226.92,7.28]
[1757602866041,7.21,227.05,226.92,7.28]
[1757602871945,7.21,227.05,226.94,7.28]
[1757602872343,4.92842907,227.19,226.94,7.28]
[1757602872538,30.54775735,227.18,226.94,7.28]
[1757602872738,7.21,227.16,226.94,7.28]
[1757602872942,7.21,227.14,226.94,7.28]
[1757602873142,7.21,227.12,226.94,7.28]
[1757602874046,7.21,227.17,226.94,7.28]
[1757602874246,7.21,227.15,226.94,7.28]
[1757602874546,7.21,227.13,226.94,7.28]
[1757602874749,7.21,227.11,226.94,7.28]
[1757602875342,7.21,227.11,226.95,29.74]
[1757602875544,7.21,227.09,226.96,7.28]
[1757602876650,7.21,227.09,226.96,75.92]
[1757602878854,7.21,227.09,226.96,7.28]
[1757602879053,7.21,227.09,226.96,47.0]
[1757602879253,7.21,227.09,226.97,7.28]
[1757602887352,7.4,227.15,226.93,45.34]
[1757602887557,10.18883177,227.14,226.93,45.34]
[1757602887748,10.18883177,227.13,226.93,7.28]
[1757602887952,7.4,227.11,226.93,7.28]
[1757602888257,7.4,227.09,226.93,7.28]
[1757602888457,4.92842907,227.15,226.93,7.28]
[1757602888458,7.4,227.07,226.93,7.28]
[1757602888659,7.4,227.05,226.93,7.28]
[1757602889259,7.4,227.14,226.93,7.28]
[1757602889460,7.4,227.12,226.93,7.28]
[1757602889660,7.4,227.1,226.93,7.28]
[1757602889860,7.4,227.08,226.93,7.28]
[1757602890862,7.4,227.08,226.94,7.39]
[1757602892154,7.4,227.08,226.95,7.39]
[1757602892555,7.4,227.16,226.95,7.39]
[1757602892755,7.4,227.14,226.97,7.39]
[1757602892956,7.4,227.12,226.97,7.39]
[1757602893167,6.62327966,227.11,226.97,7.39]
[1757602893366,3.55726711,227.1,226.97,7.39]
[1757602893567,7.4,227.12,226.97,7.39]
[1757602893869,6.62197604,227.11,226.97,7.39]
[1757602894070,3.55655986,227.1,226.97,7.39]
[1757602894268,7.4,227.12,226.97,7.39]
[1757602894469,6.6220576,227.11,226.97,7.39]
[1757602894667,3.5566041,227.1,226.97,7.39]
[1757602894867,7.4,227.12,226.97,7.39]
[1757602895067,6.62205761,227.11,226.97,7.39]
[1757602895266,3.5566041,227.1,226.97,7.39]
[1757602895462,7.4,227.12,226.97,7.39]
[1757602895768,6.6225567,227.11,226.97,7.39]
[1757602895962,3.55686025,227.1,226.97,7.39]
[1757602896159,7.4,227.12,226.97,7.39]
[1757602896360,10.20456769,227.11,226.97,7.39]
[1757602896572,7.4,227.09,226.97,7.39]
[1757602900361,7.4,227.07,226.97,7.39]
[1757602905873,4.92842907,227.16,226.97,7.39]
[1757602906073,17.60812165,227.15,226.97,7.39]
[1757602906273,10.20812165,227.14,226.97,7.4132444]
[1757602906470,10.20812165,227.13,226.98,7.39]
[1757602906779,6.62551408,227.12,226.98,14.8032444]
[1757602906967,7.4,227.21,227.0,14.8032444]
[1757602907172,7.4,227.21,227.08,7.39]
[1757602907373,7.4,227.21,227.1,7.39]
[1757602907568,7.4,227.21,227.1,44.83]
[1757602907780,7.4,227.21,227.1,37.44]
[1757602907983,7.4,227.21,227.11,7.39]
[1757602913381,7.4,227.28,227.05,7.39]
[1757602913574,7.4,227.26,227.05,7.39]
[1757602913774,6.5918328,227.25,227.05,101.35]
[1757602913974,6.5918328,227.24,227.05,101.35]
[1757602914173,6.5918328,227.23,227.05,93.96]
[1757602914377,10.93782917,227.22,227.06,7.39]
[1757602914577,7.4,227.22,227.06,7.39]
[1757602915879,7.4,227.28,227.06,7.39]
[1757602916087,7.4,227.26,227.06,7.39]
[1757602916279,7.4,227.24,227.06,7.39]
[1757602916479,7.4,227.22,227.06,7.39]
[1757602917284,7.4,227.2,227.06,7.39]
[1757602919782,7.4,227.2,227.07,25.84]
[1757602919986,7.4,227.2,227.08,7.55]
[1757602922988,7.4,227.2,227.1,7.55]
[1757602925591,16.33561866,227.3,227.03,7.55]
[1757602925789,7.02,227.27,227.03,7.55]
[1757602925988,7.02,227.25,227.03,7.55]
[1757602926193,7.02,227.23,227.03,7.55]
[1757602926395,7.02,227.21,227.03,7.55]
[1757602926590,7.02,227.19,227.03,7.55]
[1757602928693,7.02,227.17,227.03,7.55]
[1757602934104,7.02,227.27,227.03,7.55]
[1757602934304,7.02,227.25,227.03,7.55]
[1757602934504,7.02,227.23,227.03,7.55]
[1757602936502,7.02,227.23,227.04,14.9632444]
[1757602936698,7.02,227.23,227.05,7.55]
[1757602937209,7.02,227.29,227.07,7.55]
[1757602937408,7.02,227.29,227.09,7.55]
[1757602937709,7.02,227.29,227.11,7.55]
[1757602939301,7.02,227.29,227.07,14.9632444]
[1757602939504,0.61561866,227.3,227.07,14.9632444]
[1757602939505,7.02,227.25,227.07,7.55]
[1757602939704,7.02,227.23,227.07,7.55]
[1757602939903,7.02,227.21,227.07,7.55]
[1757602943104,7.02,227.21,227.07,23.35]
[1757602943305,7.02,227.29,227.08,7.55]
[1757602943505,7.02,227.27,227.08,7.55]
[1757602943705,7.02,227.25,227.08,7.55]
[1757602943910,6.58803094,227.24,227.08,7.55]
[1757602944208,7.02,227.22,227.08,21.01]
[1757602946405,7.02,227.22,227.08,34.67]
[1757602948107,7.02,227.22,227.09,7.1]
[1757602948308,17.46142394,227.21,227.04,7.1]
[1757602948511,7.34,227.19,227.04,7.1]
[1757602948717,7.34,227.17,227.04,7.1]
[1757602948918,7.34,227.15,227.04,7.1]
[1757602950817,7.34,227.13,226.99,7.1]
[1757602951015,10.13569215,227.12,226.98,169.716251]
[1757602951215,7.34,227.1,226.98,169.716251]
[1757602951416,7.34,227.18,226.98,169.716251]
[1757602951612,7.34,227.16,226.98,169.716251]
[1757602951815,17.47522074,227.15,226.95,7.1]
[1757602952114,7.34,227.13,226.95,7.1]
[1757602952308,7.34,227.11,226.95,7.1]
[1757602952512,7.34,227.09,226.95,7.1]
[1757602960727,7.34,227.07,226.95,7.1]
[1757602962828,7.34,227.15,226.9,7.1]
[1757602963028,7.34,227.13,226.9,7.1]
[1757602963327,7.34,227.11,226.9,7.1]
[1757602963522,7.34,227.09,226.9,7.1]
[1757602963729,7.34,227.07,226.9,7.1]
[1757602971833,7.34,227.05,226.9,7.1]
[1757602978730,8.58,227.09,226.85,7.63624134]
[1757602978731,7.3,227.08,226.85,7.63624134]
[1757602978932,10.05111568,227.07,226.85,21.13579857]
[1757602979140,7.3,227.05,226.85,7.63624134]
[1757602979436,7.3,227.03,226.85,7.63624134]
[1757602980334,7.3,227.03,226.86,6.87]
[1757602982138,300.78842907,227.19,226.86,6.87]
[1757602982330,127.65054266,227.18,226.86,6.87]
[1757602982533,7.3,227.16,226.86,6.87]
[1757602982732,7.3,227.14,226.86,6.87]
[1757602982933,7.3,227.12,226.86,6.87]
[1757602983130,7.3,227.1,226.86,6.87]
[1757602983335,7.3,227.08,226.86,6.87]
[1757602984141,7.3,227.08,226.88,6.87]
[1757602985238,7.3,227.15,226.88,6.87]
[1757602985438,7.3,227.13,226.89,6.87]
[1757602986233,7.3,227.15,226.9,6.87]
[1757602986442,7.3,227.13,226.92,6.87]
[1757602986642,7.3,227.11,226.92,6.87]
[1757602986845,3.53714807,227.1,226.92,117.11]
[1757602987038,3.53725158,227.09,226.92,117.11]
[1757602987236,7.3,227.15,226.92,117.11]
[1757602987441,7.3,227.13,226.92,6.87]
[1757602987647,7.3,227.11,226.92,6.87]
[1757602987945,7.3,227.09,226.92,6.87]
[1757602988254,7.3,227.07,226.92,6.87]
[1757602989352,3.54154859,227.06,226.87,302.87]
[1757602989647,6.59160497,227.05,226.88,50.52]
[1757602989854,6.59181964,227.04,226.87,302.87]
[1757602990054,6.59181964,227.03,226.87,302.87]
[1757602990249,7.3,227.01,226.87,302.87]
[1757602991548,7.3,227.06,226.87,302.87]
[1757602991748,17.84,227.07,226.87,302.87]
[1757602991749,7.3,227.04,226.87,302.87]
[1757602991950,7.3,227.02,226.88,6.87]
[1757602992252,3.54521676,227.01,226.88,6.87]
[1757602992452,3.54521676,227.0,226.88,6.87]
[1757602992651,7.3,227.02,226.88,6.87]
[1757602992851,3.5472776,227.01,226.88,6.87]
[1757602993153,3.5472776,227.0,226.88,6.87]
[1757602993362,7.3,227.02,226.88,6.87]
[1757602993548,7.3,227.0,226.88,6.87]
[1757602993860,7.3,227.0,226.88,117.17]
[1757602994357,3.55068538,226.99,226.88,117.17]
[1757602994553,13.42,227.07,226.88,6.87]
[1757602994554,6.60869131,226.98,226.88,6.87]
[1757602994756,18.34842907,227.07,226.88,6.87]
[1757602994757,10.85082346,226.97,226.88,6.87]
[1757602995058,7.3,226.97,226.88,6.87]
[1757602995456,3.55127161,226.96,226.88,6.87]
[1757602995652,7.3,226.97,226.88,6.87]
[1757602995849,3.55127161,226.96,226.88,6.87]
[1757602996159,7.3,226.97,226.88,6.87]
[1757602999763,7.3,227.06,226.88,6.87]
[1757602999964,7.3,227.04,226.88,6.87]
[1757603000164,7.3,227.02,226.88,6.87]
[1757603000366,7.3,227.0,226.88,6.87]
[1757603000660,7.3,226.98,226.88,6.87]
[1757603002563,7.3,227.04,226.85,13.10106717]
[1757603002868,7.3,227.02,226.84,38.83]
[1757603003061,7.3,227.0,226.84,38.83]
[1757603003270,7.3,226.98,226.84,38.83]
[1757603003864,7.3,226.98,226.85,6.87]
[1757603004162,7.3,227.04,226.85,6.87]
[1757603004363,7.3,227.02,226.87,6.87]
[1757603004569,6.58681021,227.01,226.87,6.87]
[1757603004773,3.53088498,227.0,226.87,6.87]
[1757603004970,7.3,227.02,226.87,6.87]
[1757603005159,6.58681114,227.01,226.87,6.87]
[1757603005363,6.58681114,227.0,226.87,6.87]
[1757603005668,7.3,227.02,226.87,6.87]
[1757603005868,6.58868977,227.01,226.87,6.87]
[1757603006068,6.58868977,227.0,226.87,6.87]
[1757603006264,7.3,227.02,226.87,6.87]
[1757603006466,6.58906217,227.01,226.87,6.87]
[1757603006665,6.58906217,227.0,226.87,6.87]
[1757603006862,7.3,227.02,226.87,6.87]
[1757603007170,10.08776547,227.01,226.87,6.87]
[1757603007370,6.58912492,227.0,226.87,6.87]
[1757603007564,3.5321167,226.99,226.87,6.87]
[1757603007862,7.3,227.02,226.87,6.87]
[1757603008058,10.10018598,227.01,226.87,6.87]
[1757603008263,6.58916216,227.0,226.87,6.87]
[1757603008464,3.53213415,226.99,226.87,6.87]
[1757603008661,7.3,227.02,226.87,6.87]
[1757603008863,10.10020426,227.01,226.87,6.87]
[1757603009066,6.58917552,227.0,226.87,6.87]
[1757603009268,7.3,227.02,226.87,6.87]
[1757603009571,7.16,227.0,226.87,6.87]
[1757603009770,7.16,226.98,226.87,6.87]
[1757603011866,7.16,226.96,226.87,6.87]
[1757603012268,6.589617,226.95,226.83,7.15]
[1757603012470,17.17600291,226.94,226.83,7.15]
[1757603012676,10.58638591,226.94,226.83,7.15]
[1757603014977,7.16,226.94,226.83,7.15]
[1757603024472,3.42638591,226.97,226.79,0.76702667]
[1757603024473,16.63638591,226.97,226.79,0.76702667]
[1757603024672,7.16,226.87,226.71,20.51635965]
[1757603024971,3.42638591,226.88,226.71,20.51635965]
[1757603024972,7.16,226.82,226.71,7.15]
[1757603027881,10.88549502,226.81,226.65,7.15]
[1757603028080,7.16,226.78,226.65,7.15]
[1757603029284,7.16,226.78,226.66,7.15]
[1757603032283,7.16,226.76,226.66,7.15]
[1757603039491,7.37,226.81,226.66,7.15]
[1757603039684,3.7076505,226.8,226.66,7.15]
[1757603039889,7.37,226.81,226.66,7.15]
[1757603040086,3.7072725,226.8,226.66,7.15]
[1757603040389,7.37,226.81,226.66,7.15]
[1757603040891,7.37,226.85,226.66,7.15]
[1757603041092,3.69740724,226.84,226.66,7.15]
[1757603041293,3.69740724,226.83,226.66,7.15]
[1757603041588,7.37,226.85,226.69,7.51]
[1757603041793,3.69698327,226.84,226.71,7.51]
[1757603042092,7.37,226.85,226.71,7.51]
[1757603042892,7.37,226.89,226.71,7.51]
[1757603043093,7.37,226.89,226.73,7.51]
[1757603044594,7.37,226.89,226.75,7.51]
[1757603044990,7.37,226.95,226.77,7.51]
[1757603045292,3.69639655,226.94,226.77,7.51]
[1757603045497,3.69639655,226.93,226.77,7.51]
[1757603045792,7.37,226.95,226.77,7.51]
[1757603045990,7.37,226.95,226.81,7.51]
[1757603046190,7.37,226.93,226.81,7.51]
[1757603046494,3.42638591,226.88,226.75,25.0]
[1757603046690,7.37,226.87,226.76,7.51]
[1757603050095,7.37,226.87,226.68,62.0]
[1757603050096,7.37,226.87,226.72,7.51]
[1757603050288,7.37,226.83,226.72,7.51]
[1757603050484,3.42638591,226.84,226.72,7.51]
[1757603050900,3.42638591,226.87,226.72,7.51]
[1757603051487,3.42638591,226.87,226.73,37.98]
[1757603051796,3.42638591,226.87,226.74,7.51]
[1757603052496,2.19388936,226.85,226.74,7.51]
[1757603053087,2.19388936,226.85,226.76,7.51]
[1757603054397,9.56388936,226.88,226.76,7.51]
[1757603054698,2.19388936,226.91,226.78,7.51]
[1757603056099,2.19388936,226.88,226.78,7.51]
[1757603056895,7.37,226.9,226.78,7.51]
[1757603057091,2.19388936,226.91,226.78,7.51]
[1757603057597,7.37,226.94,226.78,7.51]
[1757603057898,2.19388936,226.91,226.78,7.51]
[1757603058499,9.56388936,226.94,226.81,7.51]
[1757603058698,7.37,226.94,226.81,7.51]
[1757603060696,2.19388936,226.96,226.81,7.51]
[1757603060899,2.19388936,226.96,226.84,7.51]
[1757603061500,2.19388936,226.96,226.72,62.0]
[1757603061501,7.37,226.88,226.79,26.49]
[1757603061697,2.19388936,226.85,226.79,26.49]
[1757603064400,17.88571765,227.04,226.8,7.51]
[1757603064593,2.19388936,226.9,226.8,7.51]
[1757603065703,2.19388936,226.9,226.81,110.18]
[1757603066203,2.19388936,226.9,226.8,7.51]
[1757603066501,2.19388936,226.9,226.81,110.14]
[1757603066901,2.19388936,226.9,226.82,7.51]
[1757603067197,12.95728858,227.04,226.82,7.51]
[1757603067198,2.19388936,226.96,226.82,7.51]
[1757603067403,2.19388936,226.96,226.84,7.14]
[1757603068300,7.37,226.98,226.84,7.14]
[1757603069194,7.37,226.98,226.85,46.82]
[1757603070201,7.37,226.98,226.86,7.14]
[1757603070902,7.37,226.98,226.77,7.14]
[1757603071205,6.87,226.92,226.77,7.14]
[1757603071601,5.21887956,226.88,226.77,7.14]
[1757603071796,6.87,226.87,226.72,13.44248606]
[1757603071995,6.87,226.87,226.71,14.66]
[1757603072205,6.87,226.87,226.72,7.14]
[1757603073406,6.87,226.87,226.71,7.52]
[1757603073407,6.87,226.99,226.76,14.5532444]
[1757603073608,6.87,226.99,226.77,7.14]
[1757603073801,6.87,226.97,226.77,7.14]
[1757603074106,6.87,226.97,226.79,7.14]
[1757603074304,6.87,226.97,226.8,4.3]
[1757603074701,6.87,226.97,226.81,7.14]
[1757603075401,6.87,226.99,226.82,19.86]
[1757603075603,5.21887956,226.95,226.81,7.14]
[1757603075809,6.87,226.94,226.81,7.14]
[1757603078310,6.87,226.92,226.81,7.14]
[1757603079520,6.87,226.9,226.77,110.6]
[1757603079813,19.87887956,226.95,226.74,7.14]
[1757603080002,10.30133974,226.94,226.74,118.46]
[1757603080204,6.79001009,226.93,226.74,118.46]
[1757603080411,6.87,226.91,226.75,7.14]
[1757603081204,3.74455664,226.9,226.75,7.14]
[1757603081404,6.87,226.91,226.75,7.14]
[1757603081607,3.7445567,226.9,226.75,7.14]
[1757603081808,6.87,226.91,226.75,7.14]
[1757603082003,3.7445559,226.9,226.75,7.14]
[1757603082207,3.74687571,226.89,226.75,7.14]
[1757603082401,6.87,226.91,226.75,7.14]
[1757603082603,3.74687618,226.9,226.75,7.14]
[1757603082813,3.74687618,226.89,226.75,7.14]
[1757603083012,6.87,226.91,226.75,7.14]
[1757603083205,3.74687625,226.9,226.75,7.14]
[1757603083402,3.74687625,226.89,226.75,7.14]
[1757603083603,3.74687625,226.88,226.75,7.14]
[1757603083803,6.87,226.91,226.75,7.14]
[1757603084012,3.74940059,226.9,226.75,7.14]
[1757603084213,3.74940059,226.89,226.75,7.14]
[1757603084404,3.74940059,226.88,226.75,7.14]
[1757603084607,6.87,226.91,226.75,7.14]
[1757603084804,3.75230309,226.9,226.75,7.14]